Cogmind - Beta 10.2 *** ADVENTURER MODE // 2020.12.08 @ 23:35:30 Player: NinjaBub504 Result: Destroyed by G-47 Trooper with Particle Gun Performance ------------- Evolutions (1) 500 Regions Visited (6) 1200 Robots Destroyed (70) 350 Value Destroyed (1554) 1554 Prototype IDs (4) 80 Alien Tech Used (0) 0 Bonus (68) 68 TOTAL SCORE: 3752 Bonus ------- High Alert Combat Kills 68 Cogmind --------- Core Integrity 0/400 Matter 279/350 Energy 325/325 System Corruption 6% Temperature Cool (9) Movement Walking (120) Location -8/Mines Parts ------- > --- POWER (2) -------- Improved Ion Engine Light Nuclear Core > --- PROPULSION (2) --- Aluminum Leg Aluminum Leg > --- UTILITY (3) ------ Improved Heat Sink Small Matter Pod > --- WEAPON (2) ------- Particle Gun Scythe > --- INVENTORY (4) ---- (None) Peak State ------------ > --- POWER ------------ Light Nuclear Core Light Nuclear Core > --- PROPULSION ------- Wheel Improved Flight Unit > --- UTILITY ---------- Improved Heat Sink Humpback > --- WEAPON ----------- Particle Gun Shotgun > --- INVENTORY -------- Light Ion Engine [Rating: 19] Favorites ----------- Power Light Ion Engine Engine Light Ion Engine Power Core Light Nuclear Core Propulsion Wheel Treads Light Treads Leg Aluminum Leg Wheel Wheel Flight Unit Improved Flight Unit Utility Utility Shielding Device Improved Heat Sink Storage Humpback Processor Targeting Computer Protection Utility Shielding Weapon Light EM Pulse Cannon Energy Gun EM Pulse Gun Energy Cannon Light EM Pulse Cannon Ballistic Gun Shotgun Ballistic Cannon Assault Cannon Launcher Rocket Launcher Special Weapon Mining Laser Impact Weapon Hammer Slashing Weapon Scythe Build | -11 -10 -10 -9 -9 -9 -8 ------- Run | Scr Mat Min Mat Min Exi Min Slots Evolved 2 | . . . 2 . . . Power 1 | . . . 1 . . . Propulsion . | . . . . . . . Utility 1 | . . . 1 . . . Weapon . | . . . . . . . Parts Attached 78 | 7 16 7 10 8 4 26 Power 18 | 1 2 1 2 2 2 8 Engine 13 | 1 2 1 2 2 2 3 Core 5 | . . . . . . 5 Reactor . | . . . . . . . Propulsion 21 | 3 4 3 2 2 . 7 Treads 2 | . . . 2 . . . Leg 5 | . . 2 . . . 3 Wheel 12 | 3 4 1 . 2 . 2 Hover . | . . . . . . . Flight 2 | . . . . . . 2 Utility 18 | 1 6 . 3 2 2 4 Device 5 | . . . 1 1 . 3 Storage 6 | 1 2 . . . 2 1 Processor 2 | . 2 . . . . . Hackware . | . . . . . . . Protection 5 | . 2 . 2 1 . . Artifact . | . . . . . . . Weapon 21 | 2 4 3 3 2 . 7 Energy Gun 6 | 2 . . 1 . . 3 Energy Cannon 7 | . 4 2 1 . . . Ballistic Gun 3 | . . . . 2 . 1 Ballistic Cannon 1 | . . . . . . 1 Launcher 1 | . . . 1 . . . Special Weapon 1 | . . 1 . . . . Impact Weapon 1 | . . . . . . 1 Slashing Weapon 1 | . . . . . . 1 Piercing Weapon . | . . . . . . . Special Melee Weapon . | . . . . . . . Unidentified Prototypes 1 | . . . . . . 1 Parts Lost 25 | . . 2 6 7 . 10 Power 7 | . . . 2 1 . 4 Propulsion 7 | . . 2 1 2 . 2 Utility 4 | . . . 1 2 . 1 Weapon 7 | . . . 2 2 . 3 Highest Loss Streak 7 | . . 2 3 7 . 5 Average Slot Usage (%) 82 | . 91 98 86 59 87 67 Engine 12 | . 13 14 18 9 21 3 Core 1 | . . . . . . 3 Treads 1 | . . . 2 11 . . Leg 6 | . . 25 14 . . 2 Wheel 11 | . 26 1 . 7 22 11 Flight 1 | . . . . . . 5 Device 4 | . . . 3 9 2 8 Storage 5 | . 5 . . . 8 10 Processor 1 | . 14 . . . . . Protection 12 | . 1 28 26 11 11 1 Energy Gun 2 | . 13 . 1 4 . . Energy Cannon 7 | . 14 22 11 4 . . Ballistic Gun 10 | . . . . 1 22 18 Launcher 1 | . . . 7 . . . Special Weapon 1 | . . 5 1 . . . Naked Turns . | . . . . . . . Heaviest Build 97 | 11 39 13 24 17 91 97 Greatest Support 40 | 32 26 20 40 40 26 26 Greatest Overweight (x) 14 | 2 1 4 2 3 3 14 Average Overweight (x) 1 | . . . . . 1 5 Largest Inventory Capacity 24 | 6 12 4 4 4 24 24 Average Capacity 11 | 5 4 4 4 4 18 20 Most Carried 4 | 2 4 4 4 3 3 4 Average Carried 1 | . . . 2 1 1 . Final Capacity 24 | 6 4 4 4 4 24 4 Final Carried 2 | . 2 2 2 1 1 . Class Distribution -------------------- 48% | Mutant 32% | Scavenger-Mutant 19% | Hauler-Mutant Dominant Class ---------------- Mutant | -10/Materials Mutant | -10/Mines Mutant | -9/Materials Mutant | -9/Mines Scavenger-Mutant | -9/Exiles Hauler-Mutant | -8/Mines Resources | -11 -10 -10 -9 -9 -9 -8 ----------- Run | Scr Mat Min Mat Min Exi Min Matter Collected 1257 | 270 116 102 199 60 40 470 Remotely 20 | . . . . 20 . . Salvage Created 2341 | 110 441 354 811 100 . 525 Parts 151 | 7 35 19 54 5 . 31 Haulers Intercepted 2 | . 1 . 1 . . . Recyclers Shooed 7 | 1 . 2 3 1 . . Parts Field Recycled . | . . . . . . . Retrieved Matter . | . . . . . . . Parts Self-Destructed . | . . . . . . . Prevented . | . . . . . . . Kills | -11 -10 -10 -9 -9 -9 -8 ------- Run | Scr Mat Min Mat Min Exi Min Combat Hostiles Destroyed 41 | . 9 5 17 . . 10 Guns 14 | . 4 . . . . 10 Cannons 16 | . 2 5 9 . . . AOE 10 | . 2 . 8 . . . Classes Destroyed 12 | 2 6 . 2 . . 2 Worker 7 | . 2 1 . . . 4 Builder 5 | . 1 . 4 . . . Tunneler 4 | 2 1 . . . . 1 Hauler 2 | . 1 . 1 . . . Recycler 7 | 1 . 3 2 1 . . Operator 2 | . . . 2 . . . Watcher 2 | . 2 . . . . . Swarmer 15 | . 6 3 6 . . . Grunt 19 | . 3 2 6 . . 8 Brawler 1 | . . . . . . 1 Duelist 1 | . . . . . . 1 Sentry 5 | . . . 5 . . . Best Kill Streak 11 | 3 4 4 11 1 . 4 Combat Bots Only 9 | . 3 3 9 . . 3 Max Kills in Single Turn 3 | 1 2 2 3 1 . 1 Gunslinging . | . . . . . . . Exploded 2 | . 2 . 2 . . . Melee . | . . . . . . . Uniques/NPCs Destroyed . | . . . . . . . Combat | -11 -10 -10 -9 -9 -9 -8 -------- Run | Scr Mat Min Mat Min Exi Min Damage Taken 2632 | . 188 263 536 704 . 941 Core 500 | . 36 54 96 154 . 160 Absorbed by Shields . | . . . . . . . Core Remaining (%) 82 | 100 . 64 . . . . Volleys Fired 172 | 4 39 22 48 1 . 58 Largest 2 | 2 2 2 2 1 . 2 Hottest 136 | 80 136 136 112 56 . 88 Shots Fired 242 | 8 67 28 57 1 . 81 Gun 127 | 8 34 . 4 1 . 80 Cannon 97 | . 33 22 41 . . 1 Launcher 11 | . . . 11 . . . Special 7 | . . 6 1 . . . Kinetic 79 | . . . . . . 79 Thermal 41 | . 13 20 5 1 . 2 Explosive 11 | . . . 11 . . . Electromagnetic 111 | 8 54 8 41 . . . Robot Hit Streak 27 | 2 9 17 20 16 . 27 Robot Miss Streak 4 | 1 4 2 1 . . 3 Penetration Max . | . . . . . . . Secondary Targets 1 | . 1 . . . . . Max Gunslinging Chain 1 | . 1 . . . . . Shots Hit Robots 199 | 4 47 20 49 1 . 78 Core Hits 112 | 4 17 11 31 9 . 40 Critical Hits 3 | . . . 2 . . 1 Critical Kills 1 | . . . . . . 1 Critical Parts Destroyed 2 | . . . 2 . . . Melee Attacks 6 | . . . . . . 6 Impact . | . . . . . . . Slashing 6 | . . . . . . 6 Piercing . | . . . . . . . Sneak Attacks . | . . . . . . . Combat Hostiles . | . . . . . . . Follow-up Attacks . | . . . . . . . Damage Inflicted 4838 | 55 1002 506 1818 77 . 1380 Guns 1419 | 55 217 . 57 16 . 1074 Cannons 1827 | . 638 381 783 . . 25 Explosions 1058 | . 73 51 934 . . . Melee 159 | . . . . . . 159 Ramming 303 | . 74 26 20 61 . 122 Kinetic 1068 | . . . . . . 1068 Thermal 975 | . 299 344 285 16 . 31 Explosive 730 | . . . 730 . . . Electromagnetic 1603 | 55 629 136 783 . . . Impact . | . . . . . . . Slashing 159 | . . . . . . 159 Piercing . | . . . . . . . Highest Corruption 6 | . 3 3 . 2 2 6 Average Corruption 3 | . 2 3 . 2 2 4 Corruption Purged . | . . . . . . . Effects 55 | . 5 14 . 2 7 27 Message Errors 13 | . . 3 . 2 3 5 Matter Fused 10 | . . 4 . . . 6 Heat Flow Errors 3 | . . . . . 2 1 Energy Discharges 10 | . 1 5 . . 1 3 Parts Rejected 1 | . . . . . . 1 Data Loss (minor) 9 | . 2 2 . . 1 4 Targeting Errors 8 | . 1 . . . . 7 Weapon Failures 1 | . 1 . . . . . Overload Shots . | . . . . . . . Overflow Damage 180 | . 22 . 158 . . . Projectiles 52 | . 22 . 30 . . . Explosions 128 | . . . 128 . . . Melee . | . . . . . . . Knockbacks . | . . . . . . . Impact . | . . . . . . . Kinetic . | . . . . . . . Secondary . | . . . . . . . Self-Inflicted Damage 250 | . 32 23 109 27 . 59 Shots 5 | . . 1 4 . . . Rammed 59 | . 22 6 4 20 . 7 Targets Rammed 64 | . 22 10 5 20 . 7 Kicked 5 | . . 4 1 . . . Crushed . | . . . . . . . Highest Temperature 419 | 74 349 419 168 . 255 255 Average Temperature 75 | 36 62 123 45 . 119 51 Received Heat Transfer 894 | . 69 147 156 . . 522 Effects 3 | . 1 2 . . . . Shutdowns 1 | . 1 . . . . . Matter Decay 1 | . . 1 . . . . Damage (minor) 1 | . . 1 . . . . Siege Activations . | . . . . . . . Robots Corrupted 2 | . 1 . 1 . . . Combat Hostiles 1 | . 1 . . . . . Parts Fried 11 | . 8 . 3 . . . Impact Corruptions . | . . . . . . . Robots Melted . | . . . . . . . Combat Hostiles . | . . . . . . . Parts Melted 4 | . 2 1 1 . . . Heat Transferred 1610 | . 457 644 398 37 . 74 Parts Sabotaged . | . . . . . . . Parts Stolen . | . . . . . . . Parts Stripped . | . . . . . . . Power Chain Reactions 4 | . 1 1 2 . . . Missiles Intercepted . | . . . . . . . Alert | -11 -10 -10 -9 -9 -9 -8 ------- Run | Scr Mat Min Mat Min Exi Min Peak Influence 635 | 15 635 291 528 152 . 115 Initial 172 | . 8 172 33 152 . . Average 166 | 4 300 191 321 125 . 28 Maximum Alert Level 2 | . 2 1 2 . . . Low Security (%) 63 | 100 34 49 18 100 . 100 Level 1 22 | . 21 50 46 . . . Level 2 13 | . 43 . 34 . . . Level 3 . | . . . . . . . Level 4 . | . . . . . . . Level 5 . | . . . . . . . High Security . | . . . . . . . Max Security . | . . . . . . . Squads Dispatched 9 | . 1 . 7 . . 1 Investigation 5 | . 1 . 3 . . 1 Extermination . | . . . . . . . Reinforcement 4 | . . . 4 . . . Assault . | . . . . . . . Garrison . | . . . . . . . Intercept . | . . . . . . . Construction Impeded 2 | . . . 2 . . . Haulers Reinforced . | . . . . . . . Stealth | -11 -10 -10 -9 -9 -9 -8 --------- Run | Scr Mat Min Mat Min Exi Min Distress Signals 3 | . . . 2 . . 1 Communications Jammed . | . . . . . . . Distress Signals . | . . . . . . . Times Spotted 66 | . 15 5 27 6 . 13 Peak Tracking Total 5 | . 3 3 5 5 . 3 Tactical Retreats 6 | . 2 . 2 1 . 1 Traps | -11 -10 -10 -9 -9 -9 -8 ------- Run | Scr Mat Min Mat Min Exi Min Traps Triggered . | . . . . . . . Indirectly . | . . . . . . . Trap Hack Attempts . | . . . . . . . Triggered . | . . . . . . . Disarmed . | . . . . . . . Reprogrammed . | . . . . . . . Reused . | . . . . . . . Traps Extracted . | . . . . . . . Installed . | . . . . . . . Triggered 1 | . 1 . . . . . Machines | -11 -10 -10 -9 -9 -9 -8 ---------- Run | Scr Mat Min Mat Min Exi Min Machines Disabled 11 | . 3 1 7 . . . Max in Single Turn 2 | . 1 1 2 . . . Machines Sabotaged 1 | . . . . . . 1 Garrisons Compromised . | . . . . . . . Overloaded Fab Kills . | . . . . . . . Fab Network Shutdowns . | . . . . . . . Hacking | -11 -10 -10 -9 -9 -9 -8 --------- Run | Scr Mat Min Mat Min Exi Min Machines Accessed 17 | . 7 . 5 . 4 1 Terminals 9 | . 4 . 4 . . 1 Fabricators . | . . . . . . . Repair Stations 1 | . 1 . . . . . Recycling Units 2 | . 2 . . . . . Scanalyzers 1 | . . . 1 . . . Garrison Access . | . . . . . . . Total Hacks 103 | . 34 . 18 . 49 2 Successful 86 | . 24 . 11 . 49 2 Failed 17 | . 10 . 7 . . . Catastrophic 4 | . 2 . 2 . . . Database Lockouts . | . . . . . . . Manual 19 | . . . 5 . 13 1 Terminals 36 | . 19 . 15 . . 2 Fabricators . | . . . . . . . Repair Stations 4 | . 4 . . . . . Recycling Units 11 | . 11 . . . . . Scanalyzers 3 | . . . 3 . . . Garrison Access . | . . . . . . . Terminal Hacks 69 | . 13 . 6 . 49 1 Record 54 | . 5 . . . 49 . Robot Analysis 3 | . 1 . 2 . . . Prototype ID Bank 1 | . . . 1 . . . Alert Level 1 | . 1 . . . . . Locate Traps 1 | . . . 1 . . . Dispatch Records 2 | . 2 . . . . . Maintenance Status 1 | . 1 . . . . . Surveillance Status 1 | . 1 . . . . . Investigation Status 1 | . 1 . . . . . Recall Investigation 1 | . . . 1 . . . Recall Reinforcements 1 | . . . 1 . . . Hauler Manifests 1 | . 1 . . . . . Zone Layout 1 | . . . . . . 1 Fabricator Hacks . | . . . . . . . Repair Station Hacks 2 | . 2 . . . . . Scan Component 1 | . 1 . . . . . Repair 1 | . 1 . . . . . Recycling Unit Hacks 9 | . 9 . . . . . Process 6 | . 6 . . . . . Report Inventory 1 | . 1 . . . . . Retrieve Matter 1 | . 1 . . . . . Retrieve Components 1 | . 1 . . . . . Scanalyzer 3 | . . . 3 . . . Insert Component 1 | . . . 1 . . . Analyze 2 | . . . 2 . . . Garrison Access Hacks . | . . . . . . . Unauthorized Hacks 3 | . . . 2 . . 1 Terminals 3 | . . . 2 . . 1 Botnet 2 | . . . 2 . . . Sabotage 1 | . . . . . . 1 Fabricators . | . . . . . . . Repair Stations . | . . . . . . . Recycling Units . | . . . . . . . Scanalyzers . | . . . . . . . Garrison Access . | . . . . . . . Data Cores Recovered . | . . . . . . . Used . | . . . . . . . Hacking Detections 12 | . 7 . 5 . . . Full Trace Events 8 | . 3 . 5 . . . Feedback Events . | . . . . . . . Feedback Blocked . | . . . . . . . Robot Schematics Acquired . | . . . . . . . Robots Built . | . . . . . . . Matter . | . . . . . . . Time . | . . . . . . . Total Robot Build Rating . | . . . . . . . Part Schematics Acquired 1 | . . . 1 . . . Parts Built . | . . . . . . . Matter . | . . . . . . . Time . | . . . . . . . Total Part Build Rating . | . . . . . . . Parts Repaired 1 | . 1 . . . . . Time 13 | . 13 . . . . . Parts Recycled . | . . . . . . . Recycled Matter 4 | . 4 . . . . . Retrieved Matter 4 | . 4 . . . . . Retrieved Components . | . . . . . . . Parts Scanalyzed 1 | . . . 1 . . . Part Schematics Acquired 1 | . . . 1 . . . Parts Damaged . | . . . . . . . Bothacking | -11 -10 -10 -9 -9 -9 -8 ------------ Run | Scr Mat Min Mat Min Exi Min Used RIF Installer . | . . . . . . . Robots Hacked . | . . . . . . . Non-combat . | . . . . . . . Combat . | . . . . . . . Robot Hacks Applied . | . . . . . . . Relay Couplers Released . | . . . . . . . Robots Rewired . | . . . . . . . Allies Hacked . | . . . . . . . Hacks Repelled . | . . . . . . . Allies | -11 -10 -10 -9 -9 -9 -8 -------- Run | Scr Mat Min Mat Min Exi Min Total Allies 1 | . . 1 . . . . Largest Group 1 | . . 1 . . . . Highest-Rated Group 31 | . . 31 . . . . Highest-Rated Ally 31 | . . 31 . . . . Total Orders . | . . . . . . . Ally Attacks . | . . . . . . . Total Damage . | . . . . . . . Kills . | . . . . . . . Allies Corrupted . | . . . . . . . Allies Melted . | . . . . . . . Intel | -11 -10 -10 -9 -9 -9 -8 ------- Run | Scr Mat Min Mat Min Exi Min Robot Analysis Total 3 | . 1 . 2 . . . Derelict Logs Recovered 1 | . . 1 . . . . Drone Launches . | . . . . . . . Drone Recoveries . | . . . . . . . Exploration | -11 -10 -10 -9 -9 -9 -8 ------------- Run | Scr Mat Min Mat Min Exi Min Turns Passed 4474 | 86 587 713 658 252 911 1267 Spaces Moved 2905 | 58 445 484 355 195 765 603 Core 62 | 16 . 1 . 42 . 3 Treads 116 | . . . 38 78 . . Legs 849 | . . 479 317 . . 53 Wheels 1859 | 42 445 4 . 75 765 528 Hover . | . . . . . . . Flight 19 | . . . . . . 19 Fastest Speed 50 | 50 80 100 120 50 90 50 Average Speed 123 | 92 81 120 144 110 109 167 Slowest Speed 1020 | 150 100 250 180 200 120 1020 Overloaded Moves . | . . . . . . . Propulsion Burnouts . | . . . . . . . Robots Hopped . | . . . . . . . Cave-ins Triggered 1 | . . . . 1 . . Exploration Rate (%) 60 | 3 73 70 40 62 91 83 Regions Visited 6 Branch Regions 4 Pre-discovered Areas 1 | . . . . . 1 . Known Exits Taken 1 | . . 1 . . . . Unknown Exits Taken 5 | 1 1 . 1 1 1 . Scrap Searched 6 | . . 3 . 2 . 1 Spaces Dug 1 | . . 1 . . . . Terrain Destroyed 106 | . 4 6 96 . . . Melee . | . . . . . . . Projectile 3 | . . 3 . . . . AOE 103 | . 4 3 96 . . . Terrain Rammed . | . . . . . . . Walls Destroyed . | . . . . . . . Machines Disabled . | . . . . . . . Actions | -11 -10 -10 -9 -9 -9 -8 --------- Run | Scr Mat Min Mat Min Exi Min Total 3535 | 82 602 574 439 230 838 770 Wait 204 | 6 53 42 10 . 58 35 Move 2898 | 57 444 483 354 193 764 603 Hop . | . . . . . . . Pick Up 74 | 7 16 6 9 7 6 23 Fast Attach . | . . . . . . . Attach 54 | 6 8 5 7 8 4 16 Detach . | . . . . . . . Swap 24 | 1 8 2 3 . . 10 Drop 38 | 1 12 4 3 . 6 12 Fire 172 | 4 39 22 48 1 . 58 Melee 6 | . . . . . . 6 Ram 49 | . 22 . . 20 . 7 Kick 15 | . . 10 5 . . . Crush . | . . . . . . . Escape Stasis 1 | . . . . 1 . . Rewire . | . . . . . . . Trap . | . . . . . . . Miscellaneous . | . . . . . . . Route ------- -11/Scrapyard -10/Materials (discovered 2 exits: [*Min x2]) -10/Mines (discovered 2 exits: *Mat x2) -9/Materials (discovered 2 exits: [*Mat] / [*Min]) -9/Mines (discovered 3 exits: [*Mat x2] / *Exi) -9/Exiles (discovered 2 exits: *Min x2) -8/Mines (discovered 2 exits: [*Mat x2]) History --------- Turn | Location | Event 40 | -11/Scrapyard | Discovered new exit (range 14) 87 | -11/Scrapyard | Entered Materials 229 | -10/Materials | Repaired Lgt. Ion Engine 282 | -10/Materials | Discovered new exit (range 12) 308 | -10/Materials | Build established: Mutant 376 | -10/Materials | Discovered new exit (range 16) 674 | -10/Materials | Entered Mines 884 | -10/Mines | Discovered new exit (range 5) 893 | -10/Mines | Identified exit to Materials 1085 | -10/Mines | Received a Mining Laser from a helpful Derelict 1328 | -10/Mines | Received a Rocket Launcher from a helpful Derelict 1387 | -10/Mines | Entered Materials 1387 | -9/Materials | Evolved 2 slots: Power x1, Utility x1 1638 | -9/Materials | Discovered new exit (range 15) 1684 | -9/Materials | Destroyed 9 combat bots 1976 | -9/Materials | Lost 3 parts (1p1u1w) 2026 | -9/Materials | Discovered new exit (range 9) 2045 | -9/Materials | Entered Mines 2083 | -9/Mines | Assembled infested the area 2146 | -9/Mines | Met 8R-AWN 2180 | -9/Mines | Core integrity fell below 50% 2185 | -9/Mines | Crushed by falling debris 2216 | -9/Mines | Lost 7 parts (1p2n2u2w) 2237 | -9/Mines | Discovered new exit (range 9) 2261 | -9/Mines | Discovered new exit (range 13) 2293 | -9/Mines | Discovered new exit (range 5) 2297 | -9/Mines | Entered Exiles 2341 | -9/Exiles | Discovered new exit (range 15) 2361 | -9/Exiles | Welcomed by 8R-AWN 2374 | -9/Exiles | Met EX-HEX 2407 | -9/Exiles | Met EX-BIN 2478 | -9/Exiles | Met EX-DEC 2485 | -9/Exiles | Learned location of Zion (-6) 2566 | -9/Exiles | Build established: Scavenger-Mutant 2575 | -9/Exiles | Discovered new exit (range 12) 2721 | -9/Exiles | Visited The Gauntlet 3208 | -9/Exiles | Entered Mines 3236 | -8/Mines | Discovered new exit (range 10) 3390 | -8/Mines | Lost 3 parts (2p1n) 3656 | -8/Mines | Build established: Hauler-Mutant 4279 | -8/Mines | Core integrity fell below 20% 4306 | -8/Mines | Lost 5 parts (2p1n1u1w) 4440 | -8/Mines | Discovered new exit (range 17) 4475 | -8/Mines | Destroyed by G-47 Trooper with Particle Gun Last Messages --------------- Acquired Lgt. Nuclear Core. Dropped Lgt. Nuclear Core. Connecting with Terminal... Current location identified: Mines EXIT=FOUND >>Layout(Zone) Retrieving Zone 3B layout... Downloaded map data. [Achievement: Brute Force] >>Force(Sabotage) SYSTEM_VULNERABLE[Plasma Injector] NETWORK_OVERLOAD COORDINATES_RETRIEVED ALERT: Suspicious activity at Terminal M002. Dispatching Investigation squad. System corrupted: Imp. Heat Sink rejected. G-47 Trooper destroyed. Acquired Imp. Heat Sink. Shotgun destroyed. Acquired Particle Gun. Map ----- +----------------------------------------------------+ | ?????### + """" ###???# %=/= #??? | | ???????######## #?????# """!""" #??? | | ??????????????## ### #?????# """=="" #??? | | ????????????#########?# #?????# """ """ #??? | | ???????????? #?????## ##?????# *= =! #??? | | ???????????? #??????#####??????######*####??? | | ???????????? #??????????????????????# #?????? | | ????????????" #??????????????????????# #?????? | | ????????????" #?##########???????????# #?????? | | ????????????" #?# """ #???????????# #?????? | | ???????????? #?# """ #???????????# #?????? | | ???????????? #?# """ ##??????????# #?????? | | ????????????# #T#?# T#??????????# #?????? | | ????????????# ###?# ##??????????# #?????? | | ????????????# #???# #???????????# #?????? | | ????????????# #???####### ##############[#?????? | | ????????????# #?????????# #?????? | | ????????????# #?????????# ################?????? | | ????????????# #??????#### #????????????????????? | | ????????????# #?????## # #????????????????????? | | ????????????# #?????# ##???????????????????? | | ????????????# #?????# #???????????????????? | | ????????????# #?????## #???????????????????? | | ????????????# #?####?## #???????????????????? | | ????????????# ### ##?### #???????????????????? | | ????????????# ## #???#@ #???????????????????? | | ????????????# ## #####%g#???????????????????? | | ????????????# < g #???????????????????? | | ???????????????????????? #???????????????????? | | ???????????????????????#####???????????????????? | | ???????????????????????????????????????????????? | | ???????????????????????????????????????????????? | | ???????????????????????????????????????????????? | | | | | | | | | | | | | | | | | | | | | | | | | | | | | | | | | | | +----------------------------------------------------+ Best States ------------- Heat Dissipation 42 Energy Generation 23 Energy Capacity 430 Matter Stores 340 Matter Capacity 350 Sight Range 16 Terrain Scan Density 10 Base Temperature (-) 100 Armor Coverage 150 Resistance: KI 20 Resistance: TH 20 Resistance: EX 20 Resistance: EM 20 Resistance: I 20 Resistance: S 20 Resistance: P 20 Core Shielding 20 Power Shielding 33 Utility Shielding 33 Evasion (%) 50 Targeting Accuracy 10 Recoil Reduction 2 Offensive Hacking 10 Item Schematics ----------------- Hvy. Ion Engine | -9/Materials | Scanalyzed Robot Schematics ------------------ None Fabricated ------------ Nothing Alien Tech Used ----------------- None Achievements -------------- Armchair Analyst Brute Force Unlikely Earthworm Challenges ------------ None Game ------ Seed VortexLauncherBattery Manual? 0 Play Time 00:55:11 Cumulative 6.9 hours Start 2020.12.08 @ 22:14:16 End 2020.12.08 @ 23:35:30 Sessions 1 Manual Loads 0 Difficulty Adventurer Special Mode None Game No. 10 Rogue 6 Adventurer 4 Explorer 0 Win Type - Total 0 Types 0/0/0/0/0/0/0/0/0 Lore% 16 Gallery% 12 Achievement% 13 Wizard Run 0 Options --------- ASCII 0 Keyboard 0 Movement Mouse Keybinds 0 Fullscreen 2 Font 16/Terminus Map View 76x50 Tactical HUD 0 Map Filters NONE Filters NONE Steam 1 RUN: 92968b6e-ed8e-4b66-a81c-31da16f3f8a0